[Event "Gibraltar Challengers A 2019"]
[Site "Caleta"]
[Date "2019.01.22"]
[Round "2"]
[White "Villar Reymundo, Juan Antonio"]
[Black "Crespo, Eugenio"]
[Result "1-0"]
[ECO "D55"]
[WhiteElo "2237"]
[BlackElo "2169"]
[Annotator "NA"]
[PlyCount "114"]
[EventDate "2019.01.18"]
[EventType "swiss"]
[EventCountry "GGB"]
[SourceTitle "playchess.com"]
[Source "ChessBase"]
[SourceQuality "1"]
[TimeControl "6600+10"]

1. d4 {[%emt 0:09:21]} Nf6 {[%emt 0:00:22]} 2. Nf3 {[%emt 0:00:22]} e6 {[%emt 0:00:07]} 3. c4 {[%emt 0:00:55]} d5 {[%emt 0:00:15]} 4. Bg5 {[%emt 0:00:08]} Be7 {[%emt 0:00:44]} 5. Nc3 {[%emt 0:00:12]} h6 {[%emt 0:00:33]} 6. Bh4 {[%emt 0:01:54]} O-O {[%emt 0:03:43]} 7. Qc2 {[%emt 0:00:18]} b6 {[%emt 0:03:21]} 8. cxd5 {[%emt 0:01:45]} Nxd5 {[%emt 0:00:26]} 9. Nxd5 {[%emt 0:12:58]} exd5 {[%emt 0:00:34] LiveBook: 5 Games} 10. Bxe7 {[%emt 0:00:35]} Qxe7 {[%emt 0:00:06]} 11. Rc1 {[%emt 0:00:21]} c6 {[%emt 0:13:23]} 12. e3 {[%emt 0:01:16]} Be6 {[%emt 0:00:47]} 13. Bd3 {[%emt 0:05:36]} Rc8 {[%emt 0:04:14]} 14. O-O {[%emt 0:04:42]} c5 {[%emt 0:15:57]} 15. dxc5 {[%emt 0:01:26] D55: Queen's Gambit Declined: 4 Bg5 Be7: Lines without ...h6 and 6...h6 7 Bxf6} bxc5 {[%emt 0:05:09]} 16. e4 {[%emt 0:21:40]} Qb7 $146 {[%emt 0:14:06]} ({Predecessor:} 16... c4 17. Be2 Nd7 18. Rfd1 dxe4 19. Qxe4 Nf6 20. Qe3 Qb4 21. Nd4 Re8 22. Nxe6 Rxe6 {½-½ (66) Al Saffar,A (2266)-Namer,M (2206) Al Ain 2008}) 17. exd5 {[%emt 0:18:14]} Bxd5 {[%emt 0:00:08]} 18. Bf5 {[%emt 0:00:05]} Rd8 {[%emt 0:02:08]} 19. Rfd1 {[%emt 0:01:18]} Na6 {[%emt 0:12:29]} 20. Ne1 {[%emt 0:20:42]} Bxa2 {[%emt 0:04:36]} 21. Bh7+ {[%emt 0:05:08]} Kh8 {[%emt 0:00:47]} 22. Be4 {[%emt 0:00:04]} Bd5 {[%emt 0:00:30]} 23. Rxd5 {[%emt 0:00:11]} Rxd5 {[%emt 0:00:07]} 24. Qc4 {[%emt 0:03:57]} Rad8 {[%emt 0:01:02]} 25. Nd3 {[%emt 0:00:40]} Qd7 {[%emt 0:14:47]} 26. Qxa6 {[%emt 0:00:14]} Rxd3 {[%emt 0:00:07]} 27. Bxd3 {[%emt 0:00:01]} Qxd3 {[%emt 0:00:08]} 28. Qxd3 {[%emt 0:00:04]} Rxd3 {[%emt 0:00:07]} 29. Kf1 $11 {[%emt 0:00:01]} Rd2 {[%emt 0:11:15]} 30. Rxc5 {[%emt 0:00:03]} Rxb2 {[%emt 0:00:08]} 31. Rc7 {[%emt 0:00:01]} Ra2 {[%emt 0:00:14]} 32. Rxf7 {[%emt 0:00:03]} Kg8 {[%emt 0:00:06]} 33. Rb7 {[%emt 0:00:03]} a5 {[%emt 0:00:05]} 34. g4 {[%emt 0:00:26]} a4 {[%emt 0:01:06]} 35. Kg2 {[%emt 0:00:06]} a3 {[%emt 0:00:04]} 36. Ra7 {[%emt 0:00:01]} Ra1 {[%emt 0:00:40]} 37. h4 {[%emt 0:00:33]} Kf8 {[%emt 0:01:04]} 38. Kf3 {[%emt 0:00:29]} a2 {[%emt 0:00:11]} 39. Kf4 {[%emt 0:00:13]} Ke8 {[%emt 0:00:26]} 40. Kf5 {[%emt 0:00:12]} Rh1 {[%emt 0:00:21]} 41. Rxa2 {[%emt 0:00:04]} Rxh4 {[%emt 0:00:01]} 42. Ra7 {[%emt 0:00:06]} Kf8 {[%emt 0:00:22]} 43. f4 {[%emt 0:00:07]} Rh1 {[%emt 0:00:05]} 44. Kg6 {[%emt 0:00:03]} Rg1 {[%emt 0:00:07]} 45. g5 {[%emt 0:00:29]} hxg5 {[%emt 0:00:09]} 46. fxg5 {[%emt 0:00:01]} Rg2 {[%emt 0:00:13]} 47. Ra8+ {[%emt 0:00:05]} Ke7 {[%emt 0:00:01]} 48. Rg8 {[%emt 0:00:05]} Ra2 {[%emt 0:00:22]} 49. Rxg7+ {[%emt 0:00:01]} Kf8 {[%emt 0:00:01]} 50. Rb7 {[%emt 0:00:33]} Ra6+ {[%emt 0:00:24]} 51. Kh7 {[%emt 0:00:02]} Ra1 {[%emt 0:00:01]} 52. Kh6 {[%emt 0:00:19]} Rh1+ {[%emt 0:00:16]} 53. Kg6 {[%emt 0:00:05]} Ra1 {[%emt 0:00:02]} 54. Rb8+ {[%emt 0:00:02]} Ke7 {[%emt 0:00:01]} 55. Kg7 {[%emt 0:00:06]} Ra7 {[%emt 0:00:16]} 56. g6 {[%emt 0:00:37]} Ke6+ {[%emt 0:00:23]} 57. Kh6 {[%emt 0:00:09]} Ra2 {[%emt 0:00:14]} 1-0

[Event "Gibraltar Challengers A 2019"]
[Site "Caleta"]
[Date "2019.01.22"]
[Round "2"]
[White "Longa Yauca, Javier"]
[Black "Gonzalez Gonzalez, Alfonso"]
[Result "0-1"]
[ECO "E15"]
[WhiteElo "2226"]
[BlackElo "2160"]
[Annotator "NA"]
[PlyCount "130"]
[EventDate "2019.01.18"]
[EventType "swiss"]
[EventCountry "GGB"]
[SourceTitle "playchess.com"]
[Source "ChessBase"]
[SourceQuality "1"]
[TimeControl "6600+10"]

1. d4 {[%emt 0:00:00]} Nf6 {[%emt 0:03:14]} 2. c4 {[%emt 0:00:07]} e6 {[%emt 0:00:04]} 3. Nf3 {[%emt 0:00:31]} b6 {[%emt 0:00:05]} 4. g3 {[%emt 0:00:12]} Ba6 {[%emt 0:00:06]} 5. Nbd2 {[%emt 0:01:46]} d5 {[%emt 0:02:08]} 6. Bg2 {[%emt 0:00:32]} c6 {[%emt 0:00:26] LiveBook: 27 Games E15: Queen's Indian: 4 g3 sidelines, 4 g3 Ba6 and 4 g3 Bb7 early deviations} (6... Be7 7. O-O O-O 8. Ne5 c5 9. Nb3 Bb7 10. dxc5 bxc5 11. Bg5 Na6 12. Qd2 Rc8 13. Rac1 Qc7 14. Bxf6 Bxf6 15. Ng4 Be7 16. cxd5 exd5 {½-½ (50) Nakamura,H (2769)-Karjakin,S (2780) Wijk aan Zee 2013}) 7. Ne5 {[%emt 0:00:53]} Nfd7 {[%emt 0:00:23]} 8. Nxd7 {[%emt 0:03:40]} Nxd7 {[%emt 0:01:13]} 9. Qa4 $146 {[%emt 0:01:06]} (9. O-O $11) ({Predecessor:} 9. b3 Bb4 10. Bb2 dxc4 11. bxc4 Bxc4 12. Bxc6 Rc8 13. Bf3 Qg5 {0-1 (26) Dordzhieva,D (2081)-Vasilevich,I (2370) Ekaterinburg 2013}) 9... Bb7 {[%emt 0:02:10]} 10. e4 {[%emt 0:00:46]} Be7 {[%emt 0:02:37]} 11. exd5 {[%emt 0:05:27]} cxd5 {[%emt 0:02:07]} 12. cxd5 {[%emt 0:01:49]} exd5 {[%emt 0:00:15]} 13. Bh3 {[%emt 0:00:50]} a6 {[%emt 0:01:14]} 14. O-O {[%emt 0:04:46]} b5 {[%emt 0:00:17]} 15. Qb3 {[%emt 0:00:04]} O-O {[%emt 0:00:15]} 16. a4 {[%emt 0:00:14]} Nf6 {[%emt 0:03:21]} 17. Re1 {[%emt 0:03:59]} Bc6 {[%emt 0:03:11]} 18. Nf3 {[%emt 0:02:52]} bxa4 {[%emt 0:01:47]} 19. Qc2 {[%emt 0:04:27]} Bb5 {[%emt 0:00:36]} 20. Bf4 {[%emt 0:05:27]} Ra7 {[%emt 0:01:13]} 21. Ne5 {[%emt 0:04:29]} Bb4 {[%emt 0:02:47]} (21... Bd6 $15) 22. Re3 {[%emt 0:01:57]} Qb6 {[%emt 0:01:27]} 23. Rd1 {[%emt 0:01:27]} Nh5 {[%emt 0:04:15]} 24. Rf3 {[%emt 0:03:46]} Rc7 {[%emt 0:00:59]} 25. Qf5 {[%emt 0:03:18]} g6 {[%emt 0:00:34]} 26. Qb1 {[%emt 0:06:30]} Be2 {[%emt 0:01:28]} 27. Bh6 {[%emt 0:01:35]} Bxf3 {[%emt 0:00:57]} 28. Nxf3 {[%emt 0:00:17]} Re8 {[%emt 0:04:34]} 29. Qa2 {[%emt 0:00:55]} Bf8 {[%emt 0:10:34]} 30. Bxf8 {[%emt 0:04:06]} Rxf8 {[%emt 0:00:07]} 31. Qxa4 {[%emt 0:00:51]} Qxb2 {[%emt 0:08:32]} 32. Qxa6 {[%emt 0:02:05]} Rc1 {[%emt 0:00:47]} 33. Rxc1 {[%emt 0:01:00]} Qxc1+ {[%emt 0:00:06]} 34. Kg2 {[%emt 0:00:04]} Qc2 {[%emt 0:01:56]} 35. Bd7 {[%emt 0:04:25]} Qe4 {[%emt 0:02:05]} 36. h3 {[%emt 0:00:41]} Kg7 {[%emt 0:00:38]} 37. Bb5 {[%emt 0:00:59]} Nf6 {[%emt 0:05:17]} 38. Bd3 {[%emt 0:02:18]} Qe6 {[%emt 0:04:51]} 39. Qb7 {[%emt 0:00:32]} Qc8 {[%emt 0:01:22]} 40. Qb4 {[%emt 0:03:04]} Qb8 {[%emt 0:00:18]} 41. Qa3 {[%emt 0:01:13]} Qa8 {[%emt 0:00:20]} 42. Qb4 $1 {[%emt 0:01:24]} Qa2 {[%emt 0:01:49]} 43. Qb7 {[%emt 0:00:21]} Qa8 $2 {[%emt 0:01:26]} (43... Qa3 $19 44. Ne5 Qc3) 44. Qb4 {[%emt 0:01:09]} Ne4 {[%emt 0:00:39]} 45. Ne5 {[%emt 0:03:51]} Qa2 {[%emt 0:01:40]} 46. Bxe4 {[%emt 0:07:13]} dxe4 {[%emt 0:00:17]} 47. Nc4 {[%emt 0:00:08]} Qe2 {[%emt 0:01:01]} 48. Ne3 {[%emt 0:04:17]} Ra8 {[%emt 0:03:52]} 49. Qc3 {[%emt 0:01:34]} Qf3+ {[%emt 0:00:25]} 50. Kg1 {[%emt 0:00:07]} Ra2 {[%emt 0:01:36]} 51. d5+ {[%emt 0:05:46]} Qf6 {[%emt 0:00:54]} 52. Qxf6+ {[%emt 0:01:16]} Kxf6 {[%emt 0:00:08]} 53. Kf1 {[%emt 0:02:25]} h5 {[%emt 0:00:43]} 54. Nc4 {[%emt 0:00:56]} Ke7 {[%emt 0:08:32]} 55. h4 {[%emt 0:00:29]} f6 {[%emt 0:00:16]} 56. Ke1 {[%emt 0:00:55]} Rc2 {[%emt 0:01:07]} 57. Nd2 $19 {[%emt 0:00:48]} Rxd2 {[%emt 0:01:15]} 58. Kxd2 {[%emt 0:00:01]} Kd6 {[%emt 0:00:09]} 59. Ke3 {[%emt 0:00:59]} Kxd5 {[%emt 0:00:08]} 60. Kf4 {[%emt 0:00:09]} Kd4 {[%emt 0:00:08]} 61. g4 {[%emt 0:00:15]} hxg4 {[%emt 0:00:27]} 62. Kxg4 {[%emt 0:00:02]} Ke5 {[%emt 0:00:38]} 63. f4+ {[%emt 0:01:06]} Kd4 {[%emt 0:00:32]} 64. f5 {[%emt 0:00:15]} gxf5+ {[%emt 0:00:54]} 65. Kf4 {[%emt 0:00:11]} e3 {[%emt 0:00:28]} 0-1

[Event "Gibraltar Challengers A 2019"]
[Site "Caleta"]
[Date "2019.01.22"]
[Round "2"]
[White "Elishev, Ivan"]
[Black "Jordan Martinez, David"]
[Result "1/2-1/2"]
[ECO "B36"]
[WhiteElo "2224"]
[BlackElo "2125"]
[Annotator "NA"]
[PlyCount "131"]
[EventDate "2019.01.18"]
[EventType "swiss"]
[EventCountry "GGB"]
[SourceTitle "playchess.com"]
[Source "ChessBase"]
[SourceQuality "1"]
[TimeControl "6600+10"]

1. e4 {[%emt 0:00:00]} c5 {[%emt 0:00:10]} 2. Nf3 {[%emt 0:00:00]} g6 {[%emt 0:01:36]} 3. d4 {[%emt 0:00:05]} cxd4 {[%emt 0:00:18]} 4. Nxd4 {[%emt 0:00:04]} Nc6 {[%emt 0:01:49]} 5. c4 {[%emt 0:00:06]} Nf6 {[%emt 0:00:17]} 6. Nc3 {[%emt 0:00:05]} Nxd4 {[%emt 0:00:38]} 7. Qxd4 {[%emt 0:00:02]} d6 {[%emt 0:03:07]} 8. Be3 {[%emt 0:02:59]} Bg7 {[%emt 0:00:11]} 9. Be2 {[%emt 0:00:59]} O-O {[%emt 0:00:27] LiveBook: 1488 Games} 10. Qd2 {[%emt 0:00:57]} a5 {[%emt 0:00:09] B36: Sicilian: Maroczy Bind: Gurgenidze System} 11. f3 {[%emt 0:02:45]} a4 {[%emt 0:00:17]} 12. O-O {[%emt 0:00:44]} Qa5 {[%emt 0:00:20]} 13. Rab1 {[%emt 0:20:09]} Be6 {[%emt 0:03:07]} 14. Nd5 {[%emt 0:18:13]} Qxd2 {[%emt 0:06:37]} 15. Nxe7+ {[%emt 0:01:41]} Kh8 {[%emt 0:02:13]} 16. Bxd2 {[%emt 0:00:05]} Rfe8 {[%emt 0:00:09]} 17. Nd5 {[%emt 0:01:08]} Nxd5 {[%emt 0:00:13]} 18. cxd5 {[%emt 0:02:37] [#]} {Predecessor:} Bxd5 $146 {[%emt 0:00:35]} 19. Bb5 {[%emt 0:03:14]} Re5 {[%emt 0:04:54]} ({Better is} 19... Bxa2 $17 20. Bxe8 Bd4+ 21. Kh1 Bxb1 22. Bxf7 Bd3) 20. exd5 {[%emt 0:53:12]} Rxd5 {[%emt 0:00:39]} 21. Bc4 {[%emt 0:03:12]} Rxd2 {[%emt 0:00:33]} 22. Rfd1 $1 {[%emt 0:00:43]} Bd4+ {[%emt 0:07:24]} 23. Kh1 {[%emt 0:00:01]} Rxd1+ {[%emt 0:07:45]} 24. Rxd1 {[%emt 0:00:01]} Bxb2 {[%emt 0:00:13]} 25. Bxf7 {[%emt 0:00:01]} Rc8 {[%emt 0:03:02]} 26. g3 $11 {[%emt 0:00:34]} Kg7 {[%emt 0:20:45]} 27. Be6 {[%emt 0:00:01]} Rd8 {[%emt 0:25:35]} 28. Bd5 {[%emt 0:00:01]} b6 {[%emt 0:01:36]} 29. Re1 {[%emt 0:00:03]} Rd7 {[%emt 0:05:09]} 30. Re4 {[%emt 0:00:06]} a3 {[%emt 0:01:55]} 31. Rb4 {[%emt 0:00:11]} Kf6 {[%emt 0:00:23]} 32. f4 {[%emt 0:00:02]} h6 {[%emt 0:02:18]} 33. Rxb6 {[%emt 0:00:08]} g5 {[%emt 0:00:14]} 34. Kg2 {[%emt 0:00:27]} gxf4 {[%emt 0:00:41]} 35. gxf4 {[%emt 0:00:01]} Bd4 {[%emt 0:05:23]} 36. Rb8 {[%emt 0:00:02]} Re7 {[%emt 0:00:39]} 37. Kf3 {[%emt 0:01:05]} h5 {[%emt 0:01:55]} 38. Be4 {[%emt 0:00:02]} d5 {[%emt 0:02:15]} 39. Bxd5 {[%emt 0:00:01]} Re3+ {[%emt 0:00:05]} 40. Kg2 {[%emt 0:00:02]} Re2+ {[%emt 0:00:02]} 41. Kg3 {[%emt 0:00:33]} Rd2 {[%emt 0:00:29]} 42. Bc4 {[%emt 0:00:12]} Bf2+ {[%emt 0:00:28]} 43. Kf3 {[%emt 0:00:03]} Bg1 {[%emt 0:00:08]} 44. h3 {[%emt 0:00:14]} Rf2+ {[%emt 0:00:22]} 45. Kg3 {[%emt 0:00:05]} Rc2 {[%emt 0:00:07]} 46. Bb3 {[%emt 0:00:18]} Bh2+ {[%emt 0:00:14]} 47. Kf3 {[%emt 0:00:23]} Rc3+ {[%emt 0:00:05]} 48. Ke4 {[%emt 0:00:01]} Rxh3 {[%emt 0:00:14]} 49. Rb6+ {[%emt 0:00:07]} Ke7 {[%emt 0:00:04]} 50. Rh6 {[%emt 0:00:07]} Rh4 {[%emt 0:00:08]} 51. Rh7+ {[%emt 0:00:01]} Kd6 {[%emt 0:00:15]} 52. Rf7 {[%emt 0:00:01]} Rg4 {[%emt 0:00:14]} 53. Rf6+ {[%emt 0:00:44]} Ke7 {[%emt 0:00:04]} 54. Rf7+ {[%emt 0:00:01]} Kd6 {[%emt 0:00:01]} 55. Kf3 {[%emt 0:00:11]} Rg3+ {[%emt 0:00:07]} 56. Kf2 {[%emt 0:00:01]} Rg4 {[%emt 0:00:11]} 57. f5 {[%emt 0:00:13]} Be5 {[%emt 0:00:05]} 58. Rh7 {[%emt 0:00:06]} Rf4+ {[%emt 0:00:03]} 59. Ke3 {[%emt 0:00:09]} Rxf5 {[%emt 0:00:01]} 60. Rh6+ {[%emt 0:00:03]} Bf6 {[%emt 0:00:38]} 61. Ke4 {[%emt 0:00:06]} Re5+ {[%emt 0:00:04]} 62. Kf4 {[%emt 0:00:20]} Ke7 {[%emt 0:00:11]} 63. Rh7+ {[%emt 0:00:02]} Kd6 {[%emt 0:00:07]} 64. Rh6 {[%emt 0:00:01]} Ke7 {[%emt 0:00:03]} 65. Rh7+ {[%emt 0:00:01]} Kd6 {[%emt 0:00:13]} 66. Rh6 {[%emt 0:00:21] Kd5 [%emt 00:00:10]} 1/2-1/2

[Event "Gibraltar Challengers A 2019"]
[Site "Caleta"]
[Date "2019.01.22"]
[Round "2"]
[White "Carrascoso Morales, Abel"]
[Black "Herzwurm, Robert"]
[Result "1/2-1/2"]
[ECO "C00"]
[WhiteElo "2219"]
[BlackElo "2021"]
[Annotator "NA"]
[PlyCount "87"]
[EventDate "2019.01.18"]
[EventType "swiss"]
[EventCountry "GGB"]
[SourceTitle "playchess.com"]
[Source "ChessBase"]
[SourceQuality "1"]
[TimeControl "6600+10"]

1. e4 {[%emt 0:00:00]} e6 {[%emt 0:00:00]} 2. Nf3 {[%emt 0:00:00]} d5 {[%emt 0:00:30]} 3. e5 {[%emt 0:00:01]} c5 {[%emt 0:00:55]} 4. b4 {[%emt 0:00:06]} cxb4 {[%emt 0:02:23]} 5. a3 {[%emt 0:00:09]} Bd7 {[%emt 0:01:27]} 6. axb4 {[%emt 0:00:55]} Bxb4 {[%emt 0:00:49]} 7. c3 {[%emt 0:00:24]} Be7 {[%emt 0:01:37]} 8. d4 {[%emt 0:00:06]} Nc6 {[%emt 0:06:25] LiveBook: 40 Games} 9. Bd3 {[%emt 0:00:06]} b5 {[%emt 0:24:36] C00: French: Unusual White 2nd moves} (9... Rc8 10. O-O a6 11. Nbd2 Na5 12. Qc2 Qc7 13. Bxh7 Qxc3 14. Qb1 Qb4 15. Bb2 Nh6 16. Bc2 O-O 17. Rc1 Rc6 {0-1 (25) Zvjaginsev,V (2688)-Rodshtein,M (2634) Moscow 2012}) 10. h4 {[%emt 0:00:56]} h6 $146 {[%emt 0:12:20]} ({Predecessor:} 10... a5 11. Ng5 f5 12. Bxb5 Rc8 13. Qa4 Qc7 14. O-O h6 15. Nf3 g5 16. hxg5 hxg5 17. Bxg5 {1-0 (32) Schuls,O (2224)-Dubrovin,R (2220) Puhajarve 2018}) 11. Rh3 {[%emt 0:05:19]} Qc7 {[%emt 0:11:22]} 12. Na3 {[%emt 0:06:28]} Nxd4 {[%emt 0:02:13]} 13. Nxd4 {[%emt 0:14:01]} Qxc3+ {[%emt 0:00:26]} 14. Bd2 {[%emt 0:01:29]} Qxd4 {[%emt 0:00:24]} 15. Bxb5 {[%emt 0:12:25]} Qxe5+ {[%emt 0:06:07]} 16. Kf1 {[%emt 0:11:38]} Nf6 {[%emt 0:17:00]} 17. Bxd7+ {[%emt 0:01:34]} Nxd7 {[%emt 0:01:49]} 18. Bc3 {[%emt 0:01:38]} Qe4 {[%emt 0:05:42]} 19. f3 {[%emt 0:09:44]} Qg6 {[%emt 0:04:35]} 20. h5 {[%emt 0:03:44]} Qh7 {[%emt 0:01:43]} 21. Rg3 {[%emt 0:02:00]} Bf6 {[%emt 0:00:55]} 22. Bxf6 {[%emt 0:01:17]} gxf6 {[%emt 0:00:33]} 23. Nb5 {[%emt 0:04:15]} Rb8 {[%emt 0:03:14]} 24. Nd4 {[%emt 0:11:44]} Nc5 {[%emt 0:01:16]} 25. Nc6 $2 {[%emt 0:03:16]} (25. Kg1 $17 {was the only chance.}) 25... Rb7 {[%emt 0:01:10]} 26. Na5 {[%emt 0:09:44]} Rb5 {[%emt 0:00:16]} 27. Kg1 {[%emt 0:01:16]} Kd7 {[%emt 0:00:38]} 28. Nc4 {[%emt 0:01:08]} a5 {[%emt 0:00:42]} 29. Na3 {[%emt 0:02:43]} Rb3 {[%emt 0:00:39]} 30. Qd4 {[%emt 0:00:47]} Rc8 $19 {[%emt 0:00:20]} 31. Qxf6 {[%emt 0:01:24]} Ne4 {[%emt 0:00:13]} 32. fxe4 {[%emt 0:00:51]} Rxg3 {[%emt 0:00:03]} 33. exd5 {[%emt 0:00:38]} Qd3 {[%emt 0:00:55]} 34. Qxf7+ {[%emt 0:00:34]} Kd8 {[%emt 0:00:08]} 35. Qf8+ {[%emt 0:00:42]} Kd7 {[%emt 0:00:03]} 36. dxe6+ {[%emt 0:00:15]} Kc7 {[%emt 0:00:13]} 37. Rc1+ {[%emt 0:00:09]} Kb6 {[%emt 0:00:21]} 38. Qxc8 {[%emt 0:00:39]} Qe3+ {[%emt 0:00:49]} 39. Kh2 {[%emt 0:00:57]} Rh3+ {[%emt 0:00:31]} 40. gxh3 {[%emt 0:00:09]} Qf2+ {[%emt 0:00:04]} 41. Kh1 {[%emt 0:00:04]} Qf3+ {[%emt 0:00:06]} 42. Kg1 {[%emt 0:00:02]} Qg3+ {[%emt 0:00:09]} 43. Kf1 {[%emt 0:00:04]} Qf3+ {[%emt 0:00:04]} 44. Ke1 {[%emt 0:00:23]} 1/2-1/2

[Event "Gibraltar Challengers A 2019"]
[Site "Caleta"]
[Date "2019.01.22"]
[Round "2"]
[White "Pinho, Paulo"]
[Black "Osuna Vega, Enrique"]
[Result "1-0"]
[ECO "A94"]
[WhiteElo "2205"]
[BlackElo "2116"]
[Annotator "NA"]
[PlyCount "77"]
[EventDate "2019.01.18"]
[EventType "swiss"]
[EventCountry "GGB"]
[SourceTitle "playchess.com"]
[Source "ChessBase"]
[SourceQuality "1"]
[TimeControl "6600+10"]

1. d4 {[%emt 0:00:00]} e6 {[%emt 0:00:00]} 2. Nf3 {[%emt 0:02:00]} f5 {[%emt 0:00:26]} 3. g3 {[%emt 0:00:29]} Nf6 {[%emt 0:00:10]} 4. Bg2 {[%emt 0:00:04]} d5 {[%emt 0:00:11]} 5. b3 {[%emt 0:01:27]} Bb4+ {[%emt 0:09:05]} 6. c3 {[%emt 0:05:43]} Bd6 {[%emt 0:00:02]} 7. Ba3 {[%emt 0:03:08]} Bxa3 {[%emt 0:01:39]} 8. Nxa3 {[%emt 0:00:07]} Ne4 {[%emt 0:00:18]} 9. Qc1 {[%emt 0:01:30]} Qe7 {[%emt 0:02:23]} 10. O-O {[%emt 0:00:32]} O-O {[%emt 0:05:21]} 11. c4 {[%emt 0:03:33]} c6 {[%emt 0:17:58]} 12. Nc2 {[%emt 0:00:43]} Nd7 {[%emt 0:08:40]} 13. Nce1 {[%emt 0:00:40] A94: Classical Dutch: Classical Stonewall: 7 b3 c6 8 Ba3} b6 {[%emt 0:02:24]} 14. cxd5 {[%emt 0:11:58]} cxd5 {[%emt 0:00:46]} 15. Nd3 {[%emt 0:11:51]} Ba6 {[%emt 0:00:49]} 16. Qb2 {[%emt 0:05:44]} Bxd3 $146 {[%emt 0:09:14]} ({Predecessor:} 16... Rac8 17. Rac1 Qd6 18. Nfe5 Bxd3 19. exd3 Nef6 20. Rfe1 a5 21. Qe2 {½-½ (20) Fernandez,R (2275)-Soppe,G (2455) Santa Barbara d'Oeste 1998}) 17. exd3 {[%emt 0:03:25]} Nef6 {[%emt 0:00:02]} 18. Rfe1 {[%emt 0:00:34]} Qd6 {[%emt 0:00:15]} 19. Re2 {[%emt 0:05:18]} h6 {[%emt 0:02:35]} 20. Rc1 {[%emt 0:06:01]} Rac8 {[%emt 0:04:40]} 21. Ne5 {[%emt 0:04:19]} Rxc1+ {[%emt 0:12:26]} 22. Qxc1 {[%emt 0:00:08]} Re8 {[%emt 0:03:37]} 23. h3 {[%emt 0:07:09]} b5 {[%emt 0:02:22]} 24. Qc3 {[%emt 0:05:39]} Kh7 {[%emt 0:05:38]} 25. Rc2 {[%emt 0:07:03]} Nb6 {[%emt 0:03:55]} 26. Qa5 {[%emt 0:04:52]} Nbd7 {[%emt 0:07:01]} 27. Rc6 {[%emt 0:05:00]} Qb8 {[%emt 0:00:34] [#]} 28. Rc7 $1 {[%emt 0:01:16]} Rc8 {[%emt 0:07:01]} 29. Rxd7 {[%emt 0:03:34]} Nxd7 {[%emt 0:00:09]} 30. Nxd7 $18 {[%emt 0:00:07]} Rc1+ {[%emt 0:00:13]} 31. Kh2 {[%emt 0:00:21]} Qb7 {[%emt 0:01:35]} 32. Nf8+ {[%emt 0:01:19]} Kg8 {[%emt 0:01:08]} 33. Nxe6 {[%emt 0:01:09]} Qd7 {[%emt 0:02:05]} 34. Nf4 {[%emt 0:05:31]} Rc2 {[%emt 0:00:08]} 35. Qe1 {[%emt 0:01:12]} Kh7 {[%emt 0:00:12]} 36. Bxd5 {[%emt 0:00:31]} g5 {[%emt 0:00:30]} 37. Be6 {[%emt 0:00:42]} Qxd4 {[%emt 0:00:09]} 38. Bxf5+ {[%emt 0:00:10]} Kg8 {[%emt 0:00:25]} 39. Qe8+ {[%emt 0:00:14]} 1-0